fUSD/lending_fUSD_20240625
["ID","MTS","AMOUNT","RATE_DAILY","PERIOD"]
[330361666,1719333893213,-150.0,0.00032563,120]
[330361667,1719333893238,-550.0,0.000326,21]
[330361668,1719333893262,-150.0,0.00032683,120]
[330361669,1719333893287,-150.0,0.00032734,120]
[330361670,1719333893314,-150.0,0.00032789,120]
[330361671,1719333893339,-153.931342,0.000328,21]
[330361672,1719333893364,-150.0,0.00032856,120]
[330361673,1719333893389,-557.17167303,0.00032876,30]
[330361674,1719333893414,-200.0,0.00032877,60]
[330361675,1719333893438,-269.81,0.00032877,30]
[330361676,1719333893464,-150.0,0.00032896,120]
[330361677,1719333893489,-203.689286,0.00032966,120]
[330361678,1719333893512,-159.10640764,0.00033,120]
[330361679,1719333893536,-550.0,0.000331,22]
[330361680,1719333893562,-323.49,0.00033151,120]
[330361681,1719333893586,-150.0,0.00033209,120]
[330361682,1719333893611,-150.0,0.0003346,120]
[330361683,1719333893637,-156.36,0.000335,31]
[330361684,1719333893663,-156.36,0.000335,31]
[330361685,1719333893690,-156.36,0.000335,31]
[330361686,1719333893715,-560.061986,0.000336,22]
[330361687,1719333893740,-150.0,0.0003362,120]
[330361688,1719333893766,-333.8,0.00033793,30]
[330361689,1719333893792,-155.40063304,0.000338,120]
[330361690,1719333893823,-642.59771565,0.00033811,40]
[330361691,1719333893850,-387.64845191,0.00033811,40]
[330361692,1719333893874,-301.24860999,0.00033811,40]
[330361693,1719333893900,-1026.90885455,0.00033811,40]
[330361694,1719333893925,-150.0,0.00033813,120]
[330361695,1719333893951,-1000.0,0.00034,120]
[330361696,1719333893978,-150.0,0.00034297,120]
[330361697,1719333894002,-150.0,0.00034422,120]
[330361698,1719333894027,-250.0,0.00034438,40]
[330361699,1719333894054,-150.0,0.00034893,120]
[330361700,1719333894081,-731.89799676,0.00035,30]
[330361701,1719333894104,-200.0,0.00035,60]
[330361702,1719333894130,-217.97015458,0.00035,120]
[330361703,1719333894155,-1066.92169002,0.00035,30]
[330361704,1719333894406,-156.74660047,0.00035,30]
[330361705,1719333894436,-150.0,0.00035375,120]
[330361706,1719333894463,-1000.0,0.0003558,120]
[330361707,1719333894491,-200.0,0.00035616,60]
[330361708,1719333894519,-156.36,0.000358,31]
[330361709,1719333894547,-156.36,0.000358,31]
[330361710,1719333894574,-156.36,0.000358,31]
[330361711,1719333894600,-176.96,0.00035959,120]
[330361712,1719333894624,-250.0,0.00036,50]
[330361713,1719333894649,-1000.0,0.00036,120]
[330361714,1719333894675,-1766.6252075,0.00036,90]
[330361715,1719333894702,-150.0,0.00036276,120]
[330361716,1719333894728,-150.0,0.00036448,120]
[330361717,1719333894755,-150.0,0.00036599,120]
[330361718,1719333894779,-375.0,0.00036617,120]
[330361719,1719333894810,-150.0,0.00036739,120]
[330361720,1719333894835,-714.21255819,0.00037,120]
[330361721,1719333894861,-490.0,0.000374,23]
[330361722,1719333894888,-490.0,0.000374,23]
[330361723,1719333894913,-980.0,0.000374,23]
[330361724,1719333894939,-190.0,0.000374,23]
[330361725,1719333894964,-190.0,0.000374,23]
[330361726,1719333894990,-150.0,0.00037401,120]
[330361727,1719333895014,-250.0,0.00037561,60]
[330361728,1719333895040,-150.0,0.00037709,120]
[330361729,1719333895066,-150.0,0.00037988,120]
[330361730,1719333895091,-1000.0,0.00038,120]
[330361731,1719333895116,-487.48932809,0.00038,120]
[330361732,1719333895141,-151.59042768,0.00038,30]
[330361733,1719333895168,-156.36,0.000381,31]
[330361734,1719333895195,-156.36,0.000381,31]
[330361735,1719333895224,-156.36,0.000381,31]
[330361736,1719333895250,-375.0,0.00038232,120]
[330361737,1719333895273,-200.0,0.00038356,60]
[330361738,1719333895298,-429.9295473,0.00038356,30]
[330361739,1719333895324,-150.0,0.00038367,120]
[330361740,1719333895348,-429.9295473,0.00038521,30]
[330361741,1719333895372,-429.9295473,0.00038685,30]
[330361742,1719333895398,-606.86511313,0.000387,30]
[330361743,1719333895424,-333.8,0.00038775,30]
[330361744,1719333895450,-429.9295473,0.00038849,30]
[330361745,1719333895475,-398.53614047,0.000389,30]
[330361746,1719333895499,-167.47884091,0.00039,30]
[330361747,1719333895523,-189.88160801,0.00039,15]
[330361748,1719333895549,-429.9295473,0.00039014,30]
[330361749,1719333895576,-150.0,0.0003907,120]
[330361750,1719333895602,-1000.0,0.00039071,120]
[330361751,1719333895626,-250.0,0.00039123,70]
[330361752,1719333895650,-429.9295473,0.00039178,30]
[330361753,1719333895674,-350.0,0.000393,15]
[330361754,1719333895699,-429.9295473,0.00039315,30]
[330361755,1719333895723,-150.0,0.00039404,120]
[330361756,1719333895749,-429.9295473,0.00039479,30]
[330361757,1719333895775,-150.0,0.00039587,120]
[330361758,1719333895801,-429.9295473,0.00039644,30]
[330361759,1719333895832,-429.9295473,0.00039808,30]
[330361760,1719333895861,-375.0,0.00039848,120]
[330361761,1719333895888,-305.84140838,0.0003985,30]
[330361762,1719333895913,-429.9295473,0.00039973,30]
[330361763,1719333895938,-700.0,0.0004,30]
[330361764,1719333895964,-151.0,0.0004,120]
[330361765,1719333895989,-172.18888889,0.0004,120]
[330361766,1719333896014,-1000.0,0.0004,120]
[330361767,1719333896038,-199.999999,0.0004,120]
[330361768,1719333896064,-644.81968,0.0004,30]
[330361769,1719333896088,-477.12749073,0.0004,30]
[330361770,1719333896112,-235.45871927,0.0004,120]
[330361771,1719333896136,-492.05080941,0.0004,120]
[330361772,1719333896159,-266.50873438,0.0004,30]
[330361773,1719333896182,-168.99014254,0.0004,30]
[330361774,1719333896205,-443.69938135,0.0004,30]
[330361775,1719333896228,-1000.0,0.0004,20]
[330361776,1719333896250,-302.48783543,0.0004,30]
[330361777,1719333896275,-1403.86154047,0.0004,60]
[330361778,1719333896299,-196.58829064,0.0004,30]
[330361779,1719333896324,-217.69642094,0.0004,120]
[330361780,1719333896349,-301.2847259,0.0004,60]
[330361781,1719333896372,-166.92963154,0.00040036,30]
[330361782,1719333896397,-238.9424307,0.00040082,30]
[330361783,1719333896421,-553.05067394,0.00040086,30]
[330361784,1719333896445,-183.95081899,0.0004013,30]
[330361785,1719333896470,-429.9295473,0.00040137,30]
[330361786,1719333896494,-553.05067394,0.00040247,30]
[330361787,1719333896517,-154.11083982,0.0004025,30]
[330361788,1719333896541,-1373.47433482,0.0004029,30]
[330361789,1719333896567,-429.9295473,0.00040301,30]
[330361790,1719333896591,-171.41014845,0.00040329,30]
[330361791,1719333896614,-183.95081899,0.00040353,30]
[330361792,1719333896638,-429.9295473,0.00040466,30]
[330361793,1719333896661,-155.69335686,0.00040499,30]
[330361794,1719333896684,-394754.19919659,0.000405,60]
[330361795,1719333896711,-156.36,0.000405,31]
[330361796,1719333896736,-156.36,0.000405,31]
[330361797,1719333896763,-156.36,0.000405,31]
[330361798,1719333896787,-154.30109746,0.00040551,30]
[330361799,1719333896818,-155.177234,0.00040572,30]
[330361800,1719333896845,-150.0,0.00040572,120]
[330361801,1719333896868,-150.97008216,0.00040591,30]
[330361802,1719333896893,-183.95081899,0.00040599,30]
[330361803,1719333896917,-429.9295473,0.0004063,30]
[330361804,1719333896943,-205.711688,0.00040647,30]
[330361805,1719333896966,-250.0,0.00040684,80]
[330361806,1719333896991,-2474.0,0.000407,81]
[330361807,1719333897218,-172.18888889,0.00040712,120]
[330361808,1719333897244,-640340.44,0.0004075,70]
[330361809,1719333897268,-659.90412386,0.00040786,30]
[330361810,1719333897292,-238.9424307,0.00040808,30]
[330361811,1719333897317,-154.11083982,0.00040815,30]
[330361812,1719333897342,-166.66666668,0.00040839,30]
[330361813,1719333897367,-388.72473332,0.0004084,30]
[330361814,1719333897391,-247.69048818,0.00040871,30]
[330361815,1719333897415,-183.95081899,0.00040897,30]
[330361816,1719333897439,-200.0,0.000409,16]
[330361817,1719333897462,-205.711688,0.00040962,30]
[330361818,1719333897485,-500.0,0.00041,120]
[330361819,1719333897511,-261103.46,0.00041,120]
[330361820,1719333897534,-567.68072233,0.00041,120]
[330361821,1719333897558,-229.24568208,0.00041,60]
[330361822,1719333897583,-3083.37354161,0.00041,120]
[330361823,1719333897608,-238.9424307,0.00041029,30]
[330361824,1719333897631,-152.0,0.00041041,31]
[330361825,1719333897655,-1208.0,0.00041093,30]
[330361826,1719333897678,-561.49,0.00041095,120]
[330361827,1719333897701,-561.49,0.00041095,120]
[330361828,1719333897725,-561.49,0.00041095,120]
[330361829,1719333897748,-561.49,0.00041095,120]
[330361830,1719333897771,-561.49,0.00041095,120]
[330361831,1719333897795,-561.49,0.00041095,120]
[330361832,1719333897827,-561.49,0.00041095,120]
[330361833,1719333897851,-561.49,0.00041095,120]
[330361834,1719333897877,-561.49,0.00041095,120]
[330361835,1719333897901,-561.49,0.00041095,120]
[330361836,1719333897924,-561.49,0.00041095,120]
[330361837,1719333897949,-561.49,0.00041095,120]
[330361838,1719333897972,-561.49,0.00041095,120]
[330361839,1719333897997,-561.49,0.00041095,120]
[330361840,1719333898020,-561.49,0.00041095,120]
[330361841,1719333898043,-561.49,0.00041095,120]
[330361842,1719333898066,-561.49,0.00041095,120]
[330361843,1719333898090,-561.49,0.00041095,120]
[330361844,1719333898112,-561.49,0.00041095,120]
[330361845,1719333898135,-561.49,0.00041095,120]
[330361846,1719333898160,-561.49,0.00041095,120]
[330361847,1719333898186,-561.49,0.00041095,120]
[330361848,1719333898210,-561.49,0.00041095,120]
[330361849,1719333898236,-561.6077915,0.00041095,120]
[330361850,1719333898261,-510.0,0.00041095,120]
[330361851,1719333898284,-500.0,0.00041095,120]
[330361852,1719333898308,-500.0,0.00041095,120]
[330361853,1719333898332,-500.0,0.00041095,120]
[330361854,1719333898355,-500.0,0.00041095,120]
[330361855,1719333898379,-500.0,0.00041095,120]
[330361856,1719333898402,-500.0,0.00041095,120]
[330361857,1719333898425,-500.0,0.00041095,120]
[330361858,1719333898450,-500.0,0.00041095,120]
[330361859,1719333898473,-500.0,0.00041095,120]
[330361860,1719333898497,-500.0,0.00041095,120]
[330361861,1719333898520,-500.0,0.00041095,120]
[330361862,1719333898545,-500.0,0.00041095,120]
[330361863,1719333898568,-500.0,0.00041095,120]
[330361864,1719333898591,-500.0,0.00041095,120]
[330361865,1719333898615,-500.0,0.00041095,120]
[330361866,1719333898639,-500.0,0.00041095,120]
[330361867,1719333898662,-500.0,0.00041095,120]
[330361868,1719333898685,-500.0,0.00041095,120]
[330361869,1719333898708,-500.0,0.00041095,120]
[330361870,1719333898733,-500.0,0.00041095,120]
[330361871,1719333898759,-515.69343965,0.00041095,120]
[330361872,1719333898784,-200.0,0.00041096,60]
[330361873,1719333898811,-1000.0,0.00041096,30]
[330361874,1719333898839,-151.0,0.00041123,120]
[330361875,1719333898867,-155.42704866,0.00041141,30]
[330361876,1719333898891,-154.75344803,0.00041168,30]
[330361877,1719333898914,-1823.62647537,0.00041185,30]
[330361878,1719333898938,-205.711688,0.00041188,30]
[330361879,1719333898965,-247.69048818,0.00041212,30]
[330361880,1719333898988,-937.87911841,0.00041222,30]
[330361881,1719333899012,-500000.0,0.0004125,120]
[330361882,1719333899037,-1000.0,0.00041252,30]
[330361883,1719333899064,-553.05067394,0.00041253,30]
[330361884,1719333899088,-659.90412386,0.00041255,30]
[330361885,1719333899113,-183.95081899,0.00041286,30]
[330361886,1719333899140,-1373.47433482,0.00041311,30]
[330361887,1719333899164,-151.92007356,0.00041345,30]
[330361888,1719333899188,-1100.0,0.00041356,30]
[330361889,1719333899211,-500.0,0.00041356,30]
[330361890,1719333899234,-510.0,0.00041369,120]
[330361891,1719333899257,-166.66666668,0.00041374,30]
[330361892,1719333899281,-1000.0,0.00041409,30]
[330361893,1719333899306,-172.18888889,0.00041425,120]
[330361894,1719333899334,-553.05067394,0.00041432,30]
[330361895,1719333899361,-375.0,0.00041463,120]
[330361896,1719333899386,-500000.0,0.000415,100]
[330361897,1719333899410,-100003.2,0.000415,120]
[330361898,1719333899436,-166.66666666,0.00041563,30]
[330361899,1719333899462,-1000.0,0.00041566,30]
[330361900,1719333899486,-155.69335686,0.00041571,30]
[330361901,1719333899511,-150.97008216,0.00041576,30]
[330361902,1719333899535,-151.92007356,0.00041635,30]
[330361903,1719333899559,-510.0,0.00041643,120]
[330361904,1719333899586,-553.05067394,0.00041705,30]
[330361905,1719333899610,-1823.62647537,0.00041719,30]
[330361906,1719333899634,-1000.0,0.00041722,30]
[330361907,1719333899658,-500000.0,0.0004175,70]
[330361908,1719333899681,-150.97008216,0.00041777,30]
[330361909,1719333899706,-659.90412386,0.00041846,30]
[330361910,1719333899925,-166.92963154,0.0004185,30]
[330361911,1719333899952,-1000.0,0.00041879,30]
[330361912,1719333899976,-151.0,0.000419,30]
[330361913,1719333900001,-151.0,0.000419,30]
[330361914,1719333900025,-151.0,0.000419,30]
[330361915,1719333900050,-296.0,0.000419,30]
[330361916,1719333900077,-1100.0,0.00041904,30]
[330361917,1719333900102,-500.0,0.00041904,30]
[330361918,1719333900128,-310.15733678,0.00041904,30]
[330361919,1719333900153,-238.9424307,0.0004191,30]
[330361920,1719333900178,-510.0,0.00041917,120]
[330361921,1719333900202,-659.90412386,0.00041984,30]
[330361922,1719333900228,-568.0,0.00042,120]
[330361923,1719333900254,-1000.0,0.00042,120]
[330361924,1719333900278,-1000.0,0.00042,120]
[330361925,1719333900303,-1157.33,0.00042,120]
[330361926,1719333900331,-1000.0,0.00042,120]
[330361927,1719333900355,-195.93344571,0.00042,20]
[330361928,1719333900379,-1000.0,0.00042,120]
[330361929,1719333900404,-1002.28,0.00042,120]
[330361930,1719333900429,-1000.0,0.00042,120]
[330361931,1719333900455,-1000.0,0.00042,120]
[330361932,1719333900479,-337.2511616,0.00042,120]
[330361933,1719333900503,-962.0130262,0.00042,120]
[330361934,1719333900528,-250.74651447,0.00042,120]
[330361935,1719333900553,-368.1856148,0.00042015,30]
[330361936,1719333900579,-553.05067394,0.00042029,30]
[330361937,1719333900603,-1000.0,0.00042035,30]
[330361938,1719333900626,-388.72473332,0.00042036,30]
[330361939,1719333900651,-937.87911841,0.00042049,30]
[330361940,1719333900676,-166.66666666,0.00042135,30]
[330361941,1719333900701,-172.18888889,0.00042137,120]
[330361942,1719333900725,-862.77825064,0.00042145,30]
[330361943,1719333900749,-415.64182779,0.00042164,30]
[330361944,1719333900773,-150.0,0.00042164,30]
[330361945,1719333900798,-150.0,0.00042164,30]
[330361946,1719333900827,-150.0,0.00042164,30]
[330361947,1719333900852,-150.0,0.00042164,30]
[330361948,1719333900876,-150.0,0.00042164,30]
[330361949,1719333900900,-150.0,0.00042164,30]
[330361950,1719333900924,-150.0,0.00042164,30]
[330361951,1719333900947,-150.0,0.00042164,30]
[330361952,1719333900971,-150.0,0.00042164,30]
[330361953,1719333900997,-150.0,0.00042164,30]
[330361954,1719333901022,-185.41320711,0.00042164,30]
[330361955,1719333901047,-600.0,0.00042178,30]
[330361956,1719333901072,-937.87911841,0.0004218,30]
[330361957,1719333901100,-166.6666667,0.00042183,30]
[330361958,1719333901124,-220.3233846,0.00042191,120]
[330361959,1719333901148,-1000.0,0.00042192,30]
[330361960,1719333901172,-415.64182779,0.00042211,30]
[330361961,1719333901197,-150.0,0.00042213,30]
[330361962,1719333901222,-150.0,0.00042219,30]
[330361963,1719333901247,-150.0,0.00042226,30]
[330361964,1719333901274,-150.0,0.00042244,120]
[330361965,1719333901298,-553.05067394,0.00042244,30]
[330361966,1719333901323,-151.0,0.00042247,120]
[330361967,1719333901348,-415.64182779,0.00042259,30]
[330361968,1719333901372,-150.0,0.00042262,30]
[330361969,1719333901396,-247.69048818,0.00042262,30]
[330361970,1719333901422,-150.0,0.00042264,120]
[330361971,1719333901445,-150.0,0.00042274,30]
[330361972,1719333901468,-150.0,0.00042287,30]
[330361973,1719333901492,-150.0,0.00042303,120]
[330361974,1719333901517,-415.64182779,0.00042306,30]
[330361975,1719333901541,-150.0,0.00042311,30]
[330361976,1719333901566,-150.0,0.00042329,30]
[330361977,1719333901590,-150.0,0.00042331,30]
[330361978,1719333901616,-1000.0,0.00042348,30]
[330361979,1719333901640,-150.0,0.00042349,30]
[330361980,1719333901665,-415.64182779,0.00042353,30]
[330361981,1719333901690,-150.0,0.00042359,30]
[330361982,1719333901716,-238.9424307,0.00042368,30]
[330361983,1719333901743,-150.0,0.00042385,30]
[330361984,1719333901769,-415.64182779,0.00042401,30]
[330361985,1719333901795,-150.0,0.00042408,30]
[330361986,1719333901827,-150.0,0.00042411,30]
[330361987,1719333901852,-161.57778649,0.00042431,30]
[330361988,1719333901878,-150.0,0.0004244,30]
[330361989,1719333901906,-415.64182779,0.00042448,30]
[330361990,1719333901931,-1100.0,0.00042452,30]
[330361991,1719333901960,-206.10897301,0.00042452,30]
[330361992,1719333901984,-150.0,0.00042457,30]
[330361993,1719333902008,-862.77825064,0.00042462,30]
[330361994,1719333902033,-150.0,0.00042472,30]
[330361995,1719333902058,-150.0,0.00042495,30]
[330361996,1719333902090,-415.64182779,0.00042495,30]
[330361997,1719333902115,-159.5,0.00042498,30]
[330361998,1719333902140,-150.0,0.00042499,30]
[330361999,1719333902166,-1000.0,0.00042505,30]
[330362000,1719333902194,-150.0,0.00042506,30]
[330362001,1719333902221,-388.72473332,0.00042515,30]
[330362002,1719333902248,-152.11531438,0.00042531,30]
[330362003,1719333902274,-150.0,0.00042534,30]
[330362004,1719333902299,-862.77825064,0.00042535,30]
[330362005,1719333902327,-415.64182779,0.00042543,30]
[330362006,1719333902351,-150.0,0.0004255,30]
[330362007,1719333902378,-150.0,0.00042555,30]
[330362008,1719333902406,-150.0,0.00042561,120]
[330362009,1719333902651,-1000.0,0.00042562,120]
[330362010,1719333902676,-150.97008216,0.00042572,30]
[330362011,1719333902703,-415.64182779,0.0004259,30]
[330362012,1719333902728,-150.0,0.00042596,30]
[330362013,1719333902752,-643.67015163,0.000426,30]
[330362014,1719333902775,-150.97008216,0.00042601,30]
[330362015,1719333902801,-150.0,0.00042603,30]
[330362016,1719333902835,-150.0,0.00042605,30]
[330362017,1719333902861,-415.64182779,0.00042637,30]
[330362018,1719333902888,-150.0,0.00042652,30]
[330362019,1719333902913,-1373.47433482,0.00042657,30]
[330362020,1719333902938,-150.0,0.00042657,30]
[330362021,1719333902965,-150.0,0.0004266,30]
[330362022,1719333902990,-1000.0,0.00042661,30]
[330362023,1719333903014,-150.0,0.00042666,30]
[330362024,1719333903039,-415.64182779,0.00042685,30]
[330362025,1719333903067,-150.0,0.00042701,30]
[330362026,1719333903092,-155.177234,0.00042707,30]
[330362027,1719333903117,-862.77825064,0.00042708,30]
[330362028,1719333903142,-150.0,0.00042715,30]
[330362029,1719333903165,-150.0,0.00042719,30]
[330362030,1719333903190,-600.0,0.00042726,30]
[330362031,1719333903215,-415.64182779,0.00042732,30]
[330362032,1719333903241,-150.0,0.0004275,30]
[330362033,1719333903265,-553.05067394,0.00042766,30]
[330362034,1719333903290,-150.0,0.0004277,30]
[330362035,1719333903318,-415.64182779,0.00042779,30]
[330362036,1719333903346,-2658.0,0.0004278,58]
[330362037,1719333903372,-150.0,0.00042781,30]
[330362038,1719333903397,-150.0,0.00042799,30]
[330362039,1719333903422,-1500000.0,0.000428,120]
[330362040,1719333903449,-156.36,0.000428,33]
[330362041,1719333903474,-156.36,0.000428,33]
[330362042,1719333903501,-156.36,0.000428,33]
[330362043,1719333903527,-156.36,0.000428,33]
[330362044,1719333903554,-156.36,0.000428,33]
[330362045,1719333903583,-156.36,0.000428,33]
[330362046,1719333903609,-1000.0,0.00042818,30]
[330362047,1719333903635,-150.0,0.00042825,30]
[330362048,1719333903660,-415.64182779,0.00042827,30]
[330362049,1719333903683,-150.0,0.00042833,30]
[330362050,1719333903707,-150.0,0.00042842,30]
[330362051,1719333903732,-150.0,0.00042847,30]
[330362052,1719333903757,-172.18888889,0.00042849,120]
[330362053,1719333903782,-937.87911841,0.0004285,30]
[330362054,1719333903809,-415.64182779,0.00042874,30]
[330362055,1719333903837,-206.53307355,0.0004288,120]
[330362056,1719333903864,-150.0,0.00042881,30]
[330362057,1719333903890,-150.0,0.00042896,30]
[330362058,1719333903924,-388.72473332,0.00042897,30]
[330362059,1719333903972,-878.25515313,0.000429,120]
[330362060,1719333904020,-803.94523987,0.000429,30]
[330362061,1719333904063,-200.0,0.000429,18]
[330362062,1719333904119,-150.0,0.00042904,30]
[330362063,1719333904168,-415.64182779,0.00042921,30]
[330362064,1719333904210,-150.0,0.00042936,30]
[330362065,1719333904254,-150.0,0.00042945,30]
[330362066,1719333904302,-155.69335686,0.00042946,30]
[330362067,1719333904347,-183.95081899,0.00042947,30]
[330362068,1719333904387,-937.87911841,0.0004295,30]
[330362069,1719333904429,-150.0,0.00042965,30]
[330362070,1719333904469,-415.64182779,0.00042969,30]
[330362071,1719333904509,-205.711688,0.00042972,30]
[330362072,1719333904548,-1000.0,0.00042975,30]
[330362073,1719333904591,-150.0,0.00042991,30]
[330362074,1719333904635,-150.0,0.00042994,30]
[330362075,1719333904676,-1100.0,0.00043,30]
[330362076,1719333904719,-104624.06921518,0.00043,70]
[330362077,1719333904761,-230000.0,0.00043,70]
[330362078,1719333904804,-60780.02688185,0.00043,40]
[330362079,1719333910134,161.95,0.00011949,2]
[330362080,1719333936899,166.95,0.00011523,2]
[330362081,1719334051874,-667.90003883,0.00025,30]
[330362082,1719334051970,-200.0,0.00027397,60]
[330362083,1719334052016,-200.0,0.00030137,60]
[330362084,1719334052052,-200.0,0.00032877,60]
[330362085,1719334052086,-200.0,0.00035616,60]
[330362086,1719334052118,-150.0,0.00038684,120]
[330362087,1719334052145,-217.99,0.0004,120]
[330362088,1719334052173,-500.0,0.0004,120]
[330362089,1719334052196,-500.0,0.0004,120]
[330362090,1719334052219,-700.0,0.0004,30]
[330362091,1719334052244,-500.0,0.0004,120]
[330362092,1719334052269,-1000.0,0.0004,120]
[330362093,1719334052293,-155.80098944,0.0004006,30]
[330362094,1719334052317,-355.91276097,0.00040095,30]
[330362095,1719334052341,-406.41428464,0.00040216,30]
[330362096,1719334052364,-155.80098944,0.00040246,30]
[330362097,1719334052387,-155.80098944,0.00040321,30]
[330362098,1719334052411,-155.80098944,0.00040401,30]
[330362099,1719334052436,-199.11869225,0.00040408,30]
[330362100,1719334052459,-166.66666666,0.00040409,30]
[330362101,1719334052482,-169.87007055,0.00040411,30]
[330362102,1719334052505,-152.20122713,0.00040439,30]
[330362103,1719334052528,-151.92007357,0.00040461,30]
[330362104,1719334052551,-171.16638942,0.00040492,30]
[330362105,1719334052574,-161.07580388,0.00040521,30]
[330362106,1719334052597,-154.75344803,0.00040603,30]
[330362107,1719334052620,-155.177234,0.00040625,30]
[330362108,1719334052644,-355.91276097,0.00040679,30]
[330362109,1719334052668,-155.42704866,0.00040692,30]
[330362110,1719334052692,-406.41428464,0.00040769,30]
[330362111,1719334052715,-1702.05137702,0.00040862,30]
[330362112,1719334052739,-200.0,0.000409,16]
[330362113,1719334052765,-166.6666667,0.00040906,30]
[330362114,1719334052788,-166.66666666,0.00040925,30]
[330362115,1719334052812,-355.91276097,0.00040944,30]
[330362116,1719334052836,-154.30109746,0.00040952,30]
[330362117,1719334052864,-152.0,0.00041041,31]
[330362118,1719334052891,-1702.05137702,0.00041132,30]
[330362119,1719334052915,-199.11869225,0.00041188,30]
[330362120,1719334052942,-155.80098944,0.00041203,30]
[330362121,1719334052965,-155.69335686,0.00041203,30]
[330362122,1719334052991,-161.0758039,0.00041246,30]
[330362123,1719334053017,-155.80098944,0.0004134,30]
[330362124,1719334053044,-520.59974625,0.00041356,30]
[330362125,1719334053069,-487.15123217,0.00041356,30]
[330362126,1719334053096,-355.91276097,0.00041579,30]
[330362127,1719334053120,-155.42704866,0.0004159,30]
[330362128,1719334053143,-800.0,0.0004163,30]
[330362129,1719334053168,-155.80098944,0.0004174,30]
[330362130,1719334053192,-155.80098944,0.00041952,30]
[330362131,1719334053218,-166.6666667,0.00041988,30]
[330362132,1719334053244,-155.69335686,0.00042019,30]
[330362133,1719334053272,-355.91276097,0.00042101,30]
[330362134,1719334053300,-1702.05137702,0.00042136,30]
[330362135,1719334053325,-269.239,0.0004214,30]
[330362136,1719334053352,-156.23194071,0.00042164,30]
[330362137,1719334053378,-150.0,0.00042164,30]
[330362138,1719334053404,-150.0,0.00042164,30]
[330362139,1719334053430,-150.0,0.00042164,30]
[330362140,1719334053456,-150.0,0.00042164,30]
[330362141,1719334053481,-150.0,0.00042164,30]
[330362142,1719334053508,-150.0,0.00042164,30]
[330362143,1719334053533,-800.0,0.00042178,30]
[330362144,1719334053556,-156.23194071,0.00042211,30]
[330362145,1719334053580,-150.0,0.0004224,30]
[330362146,1719334053605,-156.23194071,0.00042259,30]
[330362147,1719334053630,-171.41014845,0.00042289,30]
[330362148,1719334053655,-159.44211135,0.00042291,30]
[330362149,1719334053680,-156.23194071,0.00042306,30]
[330362150,1719334053703,-150.0,0.00042315,30]
[330362151,1719334053728,-355.91276097,0.00042325,30]
[330362152,1719334053756,-156.23194071,0.00042353,30]
[330362153,1719334053779,-150.0,0.00042368,30]
[330362154,1719334053804,-150.0,0.00042391,30]
[330362155,1719334053828,-155.80098944,0.00042393,30]
[330362156,1719334053856,-156.23194071,0.00042401,30]
[330362157,1719334053880,-156.23194071,0.00042448,30]
[330362158,1719334053906,-150.0,0.00042466,30]
[330362159,1719334053931,-156.23194071,0.00042495,30]
[330362160,1719334053955,-355.91276097,0.00042503,30]
[330362161,1719334053980,-155.69335686,0.00042538,30]
[330362162,1719334054008,-150.0,0.00042542,30]
[330362163,1719334054037,-156.23194071,0.00042543,30]
[330362164,1719334054061,-1702.05137702,0.00042571,30]
[330362165,1719334054085,-150.0,0.00042571,30]